[Event "*** MasterClass Titled Tuesday Blitz"]
[Site "Chess.com"]
[Date "2017.10.03"]
[Round "7"]
[White "Oneofmyturns"]
[Black "Alexander_Moskalenko"]
[Result "0-1"]
[WhiteElo "2576"]
[BlackElo "2636"]
[TimeControl "180+2"]
[EndTime "14:37:47 PDT"]
[Termination "Alexander_Moskalenko won by resignation"]

1. d4 {[%clk 0:03:01.9]} 1... d6 {[%clk 0:03:01]} 2. e4 {[%clk 0:03:01.1]} 2...
Nf6 {[%clk 0:03:01.9]} 3. Nc3 {[%clk 0:03:02.6]} 3... e5 {[%clk 0:03:03.4]} 4.
Nf3 {[%clk 0:03:02.1]} 4... Nbd7 {[%clk 0:03:04.4]} 5. Bc4 {[%clk 0:03:03.3]}
5... Be7 {[%clk 0:03:05.6]} 6. O-O {[%clk 0:03:04]} 6... O-O {[%clk 0:03:07.2]}
7. Re1 {[%clk 0:03:04.7]} 7... a6 {[%clk 0:03:08]} 8. a4 {[%clk 0:03:05.7]} 8...
b6 {[%clk 0:03:09.1]} 9. dxe5 {[%clk 0:03:01.5]} 9... Nxe5 {[%clk 0:03:03.3]}
10. Nxe5 {[%clk 0:02:57.4]} 10... dxe5 {[%clk 0:03:05.2]} 11. Nd5 {[%clk
0:02:59]} 11... Nxd5 {[%clk 0:02:58.9]} 12. Bxd5 {[%clk 0:03:00.9]} 12... Rb8
{[%clk 0:02:59.5]} 13. Qe2 {[%clk 0:03:02.4]} 13... a5 {[%clk 0:02:55.7]} 14.
Rd1 {[%clk 0:03:03.1]} 14... Bd6 {[%clk 0:02:55.4]} 15. Qc4 {[%clk 0:02:48.5]}
15... Qe7 {[%clk 0:02:54.8]} 16. Be3 {[%clk 0:02:46.4]} 16... Kh8 {[%clk
0:02:49.7]} 17. f3 {[%clk 0:02:37.6]} 17... Bd7 {[%clk 0:02:50.3]} 18. Bc6
{[%clk 0:02:29.9]} 18... Be6 {[%clk 0:02:50.9]} 19. Bd5 {[%clk 0:02:31]} 19...
Bd7 {[%clk 0:02:52.2]} 20. Bc6 {[%clk 0:02:31.7]} 20... Be6 {[%clk 0:02:53.2]}
21. Bd5 {[%clk 0:02:32.6]} 21... Bc8 {[%clk 0:02:48.5]} 22. c3 {[%clk
0:02:22.6]} 22... Bc5 {[%clk 0:02:45.6]} 23. Bxc5 {[%clk 0:02:15.1]} 23... Qxc5+
{[%clk 0:02:47.5]} 24. Qxc5 {[%clk 0:02:15.4]} 24... bxc5 {[%clk 0:02:49.4]} 25.
b3 {[%clk 0:02:10.7]} 25... Ba6 {[%clk 0:02:42]} 26. Rab1 {[%clk 0:01:57.7]}
26... f6 {[%clk 0:02:36.1]} 27. Kf2 {[%clk 0:01:58.4]} 27... Rfd8 {[%clk
0:02:34.7]} 28. Bc4 {[%clk 0:01:33.4]} 28... Bb7 {[%clk 0:01:56.4]} 29. Ke1
{[%clk 0:01:26.3]} 29... Bc6 {[%clk 0:01:43.1]} 30. Rb2 {[%clk 0:01:00.9]} 30...
Rxd1+ {[%clk 0:01:31.5]} 31. Kxd1 {[%clk 0:01:02.8]} 31... g6 {[%clk 0:01:33]}
32. Rd2 {[%clk 0:00:54.6]} 32... Kg7 {[%clk 0:01:32.3]} 33. Kc2 {[%clk
0:00:55.2]} 33... Kf8 {[%clk 0:01:30.4]} 34. Bd5 {[%clk 0:00:52]} 34... Be8
{[%clk 0:01:30.7]} 35. Bc4 {[%clk 0:00:48.9]} 35... Ke7 {[%clk 0:01:31.9]} 36.
Rd5 {[%clk 0:00:49.4]} 36... Ra8 {[%clk 0:01:19.1]} 37. Rd2 {[%clk 0:00:26.2]}
37... Bd7 {[%clk 0:01:10.4]} 38. Bd5 {[%clk 0:00:26]} 38... Rb8 {[%clk 0:01:09]}
39. Bc4 {[%clk 0:00:27.1]} 39... Ra8 {[%clk 0:01:04.1]} 40. Rd3 {[%clk
0:00:27.3]} 40... c6 {[%clk 0:01:00.4]} 41. Rd2 {[%clk 0:00:27.9]} 41... f5
{[%clk 0:01:01.5]} 42. Bd3 {[%clk 0:00:16.2]} 42... Rf8 {[%clk 0:01:00.4]} 43.
Re2 {[%clk 0:00:14.5]} 43... f4 {[%clk 0:01:00.9]} 44. Rd2 {[%clk 0:00:15.4]}
44... g5 {[%clk 0:01:00.8]} 45. h3 {[%clk 0:00:16.7]} 45... h5 {[%clk
0:01:01.7]} 46. Be2 {[%clk 0:00:14.5]} 46... g4 {[%clk 0:00:54.9]} 47. hxg4
{[%clk 0:00:14.8]} 47... hxg4 {[%clk 0:00:56.8]} 48. Rd1 {[%clk 0:00:16.3]}
48... Rh8 {[%clk 0:00:37]} 49. Kd2 {[%clk 0:00:16.2]} 49... Rh2 {[%clk
0:00:35.6]} 50. Rg1 {[%clk 0:00:17.2]} 50... g3 {[%clk 0:00:33.3]} 51. Bc4
{[%clk 0:00:14.9]} 51... Bh3 {[%clk 0:00:34]} 52. Bf1 {[%clk 0:00:16]} 52... Be6
{[%clk 0:00:34.9]} 53. Kc2 {[%clk 0:00:17]} 53... Kd6 {[%clk 0:00:32.6]} 54. Be2
{[%clk 0:00:17.7]} 54... Bh3 {[%clk 0:00:32.6]} 55. Bf1 {[%clk 0:00:18.9]} 55...
Kc7 {[%clk 0:00:31.9]} 56. Bc4 {[%clk 0:00:19.6]} 56... Bxg2 {[%clk 0:00:29.3]}
0-1

[Event "*** MasterClass Titled Tuesday Blitz"]
[Site "Chess.com"]
[Date "2017.10.03"]
[Round "7"]
[White "mazetofonias"]
[Black "Margency"]
[Result "1-0"]
[WhiteElo "2495"]
[BlackElo "2512"]
[TimeControl "180+2"]
[EndTime "14:37:53 PDT"]
[Termination "mazetofonias won by resignation"]

1. d4 {[%clk 0:03:01.9]} 1... Nf6 {[%clk 0:03:00.7]} 2. Nf3 {[%clk 0:03:00.4]}
2... g6 {[%clk 0:03:01.9]} 3. Bg5 {[%clk 0:03:01.6]} 3... Bg7 {[%clk 0:03:02.8]}
4. Nbd2 {[%clk 0:03:02.9]} 4... d5 {[%clk 0:03:01]} 5. e3 {[%clk 0:03:03.1]}
5... h6 {[%clk 0:03:00.8]} 6. Bh4 {[%clk 0:03:03.7]} 6... c5 {[%clk 0:03:01.6]}
7. c3 {[%clk 0:03:04.3]} 7... cxd4 {[%clk 0:03:01.2]} 8. cxd4 {[%clk 0:03:06.2]}
8... Nc6 {[%clk 0:03:02.2]} 9. Be2 {[%clk 0:03:07.2]} 9... g5 {[%clk 0:02:58.4]}
10. Bg3 {[%clk 0:03:07.8]} 10... Nh5 {[%clk 0:02:59.6]} 11. O-O {[%clk
0:03:08.1]} 11... Nxg3 {[%clk 0:02:59]} 12. hxg3 {[%clk 0:03:10]} 12... e6
{[%clk 0:02:58.2]} 13. Rc1 {[%clk 0:03:08.2]} 13... h5 {[%clk 0:02:57.5]} 14.
Re1 {[%clk 0:03:01.6]} 14... g4 {[%clk 0:02:54]} 15. Nh4 {[%clk 0:03:01.5]}
15... Bf6 {[%clk 0:02:54.1]} 16. e4 {[%clk 0:03:02.3]} 16... dxe4 {[%clk
0:02:37.6]} 17. Nxe4 {[%clk 0:03:00.2]} 17... Bxd4 {[%clk 0:02:38.2]} 18. Bb5
{[%clk 0:02:59.7]} 18... Bd7 {[%clk 0:02:32.4]} 19. Nf5 {[%clk 0:02:55.5]} 19...
exf5 {[%clk 0:02:16.5]} 20. Bxc6 {[%clk 0:02:54.5]} 20... Bxc6 {[%clk
0:02:01.8]} 21. Nd6+ {[%clk 0:02:45.5]} 21... Kf8 {[%clk 0:02:01.7]} 22. Qxd4
{[%clk 0:02:46.5]} 22... Rh6 {[%clk 0:02:01.5]} 23. Rcd1 {[%clk 0:02:32.4]}
23... Qf6 {[%clk 0:01:51]} 24. Qf4 {[%clk 0:02:28.1]} 24... Bd7 {[%clk
0:01:26.6]} 25. Nxf7 {[%clk 0:02:10.9]} 25... Rh7 {[%clk 0:01:21.9]} 26. Ng5
{[%clk 0:01:20.8]} 26... Rg7 {[%clk 0:01:15.6]} 27. Ne4 {[%clk 0:01:21.5]} 27...
Qb6 {[%clk 0:01:06.3]} 28. Nd6 {[%clk 0:01:18.6]} 28... Kg8 {[%clk 0:01:03.7]}
29. Qc4+ {[%clk 0:01:12.8]} 29... Kh7 {[%clk 0:01:00.9]} 30. Qd3 {[%clk
0:01:09]} 30... Rf8 {[%clk 0:01:00.1]} 31. b3 {[%clk 0:01:08.9]} 31... Kg8
{[%clk 0:00:57.1]} 32. Qd5+ {[%clk 0:01:06.7]} 32... Kh8 {[%clk 0:00:57.1]} 33.
Re5 {[%clk 0:01:06.5]} 33... h4 {[%clk 0:00:53.4]} 34. gxh4 {[%clk 0:00:58.4]}
34... g3 {[%clk 0:00:54.1]} 35. Qd4 {[%clk 0:00:57.2]} 35... gxf2+ {[%clk
0:00:54.7]} 36. Qxf2 {[%clk 0:00:56.9]} 36... Bc6 {[%clk 0:00:53.7]} 37. Qxb6
{[%clk 0:00:42.6]} 37... Rxg2+ {[%clk 0:00:55]} 38. Kf1 {[%clk 0:00:44.1]} 38...
axb6 {[%clk 0:00:56.4]} 39. Rxf5 {[%clk 0:00:45.6]} 39... Rxf5+ {[%clk
0:00:50.4]} 40. Nxf5 {[%clk 0:00:47.5]} 40... Rxa2 {[%clk 0:00:51.2]} 41. Ke1
{[%clk 0:00:28.9]} 41... Rb2 {[%clk 0:00:44.7]} 42. Nd4 {[%clk 0:00:28.5]} 42...
Be4 {[%clk 0:00:40.9]} 43. Rd2 {[%clk 0:00:29.1]} 43... Rb1+ {[%clk 0:00:39.3]}
44. Kf2 {[%clk 0:00:30.3]} 44... Rh1 {[%clk 0:00:37.4]} 45. Ke3 {[%clk
0:00:30.8]} 45... Bd5 {[%clk 0:00:37.7]} 46. Nf5 {[%clk 0:00:29.2]} 46... Bxb3
{[%clk 0:00:37.3]} 47. Kf4 {[%clk 0:00:28.1]} 47... Be6 {[%clk 0:00:35.8]} 48.
Nd4 {[%clk 0:00:26]} 48... Bd7 {[%clk 0:00:35.7]} 49. Nf3 {[%clk 0:00:24.6]}
49... Bc6 {[%clk 0:00:36]} 50. Ne5 {[%clk 0:00:24.4]} 50... Rxh4+ {[%clk
0:00:36.4]} 51. Kg5 {[%clk 0:00:24.9]} 51... Re4 {[%clk 0:00:32.2]} 52. Kf6
{[%clk 0:00:18.7]} 52... Rf4+ {[%clk 0:00:31]} 53. Kg5 {[%clk 0:00:19.2]} 53...
Rf1 {[%clk 0:00:31.2]} 54. Kg6 {[%clk 0:00:19.4]} 54... Be4+ {[%clk 0:00:29.5]}
55. Kh6 {[%clk 0:00:19.7]} 55... Rf6+ {[%clk 0:00:30.1]} 56. Kg5 {[%clk
0:00:15.5]} 56... Rf5+ {[%clk 0:00:31.6]} 57. Kh6 {[%clk 0:00:16.9]} 57... Rxe5
{[%clk 0:00:33]} 58. Rd8+ {[%clk 0:00:17]} 1-0

[Event "*** MasterClass Titled Tuesday Blitz"]
[Site "Chess.com"]
[Date "2017.10.03"]
[Round "7"]
[White "GM_dmitrij"]
[Black "Keaton87"]
[Result "0-1"]
[WhiteElo "2636"]
[BlackElo "2481"]
[TimeControl "180+2"]
[EndTime "14:37:56 PDT"]
[Termination "Keaton87 won by resignation"]

1. e4 {[%clk 0:03:01.9]} 1... c5 {[%clk 0:03:00.6]} 2. Nf3 {[%clk 0:03:03.1]}
2... d6 {[%clk 0:03:02.1]} 3. d4 {[%clk 0:03:04.7]} 3... Nf6 {[%clk 0:03:03.6]}
4. Nc3 {[%clk 0:03:05.7]} 4... cxd4 {[%clk 0:03:05.2]} 5. Nxd4 {[%clk
0:03:07.6]} 5... g6 {[%clk 0:03:06.8]} 6. Be3 {[%clk 0:03:08.6]} 6... Bg7 {[%clk
0:03:08.4]} 7. f3 {[%clk 0:03:10.2]} 7... O-O {[%clk 0:03:09.8]} 8. Qd2 {[%clk
0:03:11.9]} 8... Nc6 {[%clk 0:03:11.3]} 9. Bc4 {[%clk 0:03:12.9]} 9... Bd7
{[%clk 0:03:12.3]} 10. O-O-O {[%clk 0:03:14]} 10... Rc8 {[%clk 0:03:13.7]} 11.
Bb3 {[%clk 0:03:15.6]} 11... Nxd4 {[%clk 0:03:15]} 12. Bxd4 {[%clk 0:03:17.5]}
12... b5 {[%clk 0:03:16.4]} 13. a3 {[%clk 0:03:19.1]} 13... a5 {[%clk
0:03:16.9]} 14. Nd5 {[%clk 0:03:20.6]} 14... Nxd5 {[%clk 0:03:16.4]} 15. Bxg7
{[%clk 0:03:21.8]} 15... Kxg7 {[%clk 0:03:17.7]} 16. exd5 {[%clk 0:03:23.7]}
16... b4 {[%clk 0:03:01.5]} 17. axb4 {[%clk 0:03:20.9]} 17... axb4 {[%clk
0:03:03.4]} 18. h4 {[%clk 0:03:20.9]} 18... Qa5 {[%clk 0:03:00.3]} 19. Qd4+
{[%clk 0:03:17.2]} 19... Kg8 {[%clk 0:02:58.4]} 20. h5 {[%clk 0:03:11.2]} 20...
Bf5 {[%clk 0:02:59.2]} 21. Kd2 {[%clk 0:03:05.6]} 21... Rc5 {[%clk 0:02:56.3]}
22. hxg6 {[%clk 0:03:00.9]} 22... Bxg6 {[%clk 0:02:56]} 23. Ke3 {[%clk
0:03:01.2]} 23... Rfc8 {[%clk 0:02:23.2]} 24. g4 {[%clk 0:02:53.3]} 24... Qa7
{[%clk 0:01:45.8]} 25. f4 {[%clk 0:02:18.3]} 25... f6 {[%clk 0:01:37.2]} 26. f5
{[%clk 0:02:13.4]} 26... Bf7 {[%clk 0:01:37.9]} 27. g5 {[%clk 0:02:10]} 27...
fxg5 {[%clk 0:01:32.4]} 28. Rxh7 {[%clk 0:00:49.1]} 28... Rc3+ {[%clk
0:01:22.2]} 29. bxc3 {[%clk 0:00:50]} 29... Rxc3+ {[%clk 0:01:22.2]} 30. Ke4
{[%clk 0:00:25.8]} 30... Qxd4+ {[%clk 0:01:17.5]} 31. Kxd4 {[%clk 0:00:27.7]}
31... Kxh7 {[%clk 0:01:17.2]} 32. Re1 {[%clk 0:00:28.7]} 32... Rc7 {[%clk
0:01:16.2]} 33. Rg1 {[%clk 0:00:30.2]} 33... Kh6 {[%clk 0:01:16.5]} 34. Bc4
{[%clk 0:00:31.6]} 34... Bh5 {[%clk 0:01:11.9]} 35. Bd3 {[%clk 0:00:23.7]} 35...
Bf3 {[%clk 0:01:04.7]} 36. Rb1 {[%clk 0:00:14.6]} 36... Rb7 {[%clk 0:01:03]} 37.
Rb3 {[%clk 0:00:11.3]} 37... g4 {[%clk 0:01:03.8]} 38. Be4 {[%clk 0:00:04.8]}
38... Bxe4 {[%clk 0:00:36.1]} 39. Kxe4 {[%clk 0:00:06.7]} 39... Rc7 {[%clk
0:00:37.1]} 40. Rxb4 {[%clk 0:00:07.3]} 40... Rxc2 {[%clk 0:00:35.2]} 41. Kf4
{[%clk 0:00:08.7]} 41... Kh5 {[%clk 0:00:32.8]} 42. Rb7 {[%clk 0:00:09.8]} 42...
Rc4+ {[%clk 0:00:33.6]} 43. Ke3 {[%clk 0:00:09.4]} 43... Rc1 {[%clk 0:00:23.4]}
44. Ke2 {[%clk 0:00:10.1]} 44... Rc5 {[%clk 0:00:23.2]} 45. Rxe7 {[%clk
0:00:10.8]} 45... Rxd5 {[%clk 0:00:24.5]} 46. f6 {[%clk 0:00:12.3]} 46... Rf5
{[%clk 0:00:24.5]} 47. Rh7+ {[%clk 0:00:11.6]} 47... Kg5 {[%clk 0:00:24.9]} 48.
Rg7+ {[%clk 0:00:13.2]} 48... Kf4 {[%clk 0:00:22.2]} 49. f7 {[%clk 0:00:14.4]}
49... Kg3 {[%clk 0:00:21.1]} 50. Kd3 {[%clk 0:00:15]} 50... Kf3 {[%clk
0:00:18.8]} 51. Rh7 {[%clk 0:00:03.4]} 51... g3 {[%clk 0:00:18.6]} 52. Rh1
{[%clk 0:00:05.1]} 52... g2 {[%clk 0:00:19.4]} 53. Rh3+ {[%clk 0:00:06]} 53...
Kf2 {[%clk 0:00:20.1]} 54. Rh5 {[%clk 0:00:07.3]} 54... Rxf7 {[%clk 0:00:20.3]}
55. Rh2 {[%clk 0:00:09.2]} 55... Kg3 {[%clk 0:00:20.2]} 56. Rxg2+ {[%clk
0:00:10.1]} 56... Kxg2 {[%clk 0:00:21.2]} 0-1

[Event "*** MasterClass Titled Tuesday Blitz"]
[Site "Chess.com"]
[Date "2017.10.03"]
[Round "7"]
[White "yosephtaher"]
[Black "gmcorrales"]
[Result "1-0"]
[WhiteElo "2593"]
[BlackElo "2641"]
[TimeControl "180+2"]
[EndTime "14:38:05 PDT"]
[Termination "yosephtaher won on time"]

1. d4 {[%clk 0:03:01.9]} 1... Nf6 {[%clk 0:02:53.1]} 2. c4 {[%clk 0:03:02.4]}
2... e6 {[%clk 0:02:53.7]} 3. Nf3 {[%clk 0:03:03.2]} 3... d5 {[%clk 0:02:46.4]}
4. Nc3 {[%clk 0:03:01.2]} 4... Be7 {[%clk 0:02:46.1]} 5. Bg5 {[%clk 0:02:58.9]}
5... O-O {[%clk 0:02:47.1]} 6. e3 {[%clk 0:02:58]} 6... b6 {[%clk 0:02:47.9]} 7.
cxd5 {[%clk 0:02:56.9]} 7... Nxd5 {[%clk 0:02:47.9]} 8. Bxe7 {[%clk 0:02:58.4]}
8... Qxe7 {[%clk 0:02:49.8]} 9. Bd3 {[%clk 0:02:56.4]} 9... Bb7 {[%clk
0:02:47.3]} 10. Qc2 {[%clk 0:02:57.2]} 10... h6 {[%clk 0:02:44.5]} 11. Nxd5
{[%clk 0:02:51.6]} 11... Bxd5 {[%clk 0:02:45.1]} 12. e4 {[%clk 0:02:51.9]} 12...
Bb7 {[%clk 0:02:45.7]} 13. O-O-O {[%clk 0:02:52.5]} 13... Nd7 {[%clk 0:02:45.3]}
14. Kb1 {[%clk 0:02:53.5]} 14... c5 {[%clk 0:02:44.5]} 15. d5 {[%clk 0:02:53.8]}
15... exd5 {[%clk 0:02:44.3]} 16. exd5 {[%clk 0:02:55.1]} 16... Qd6 {[%clk
0:02:43.4]} 17. Nd2 {[%clk 0:02:44.5]} 17... Rad8 {[%clk 0:02:41.4]} 18. Nc4
{[%clk 0:02:29.9]} 18... Qf6 {[%clk 0:02:40.4]} 19. Ne3 {[%clk 0:02:18.2]} 19...
Ne5 {[%clk 0:02:38.9]} 20. Be4 {[%clk 0:02:12.8]} 20... Rfe8 {[%clk 0:02:36.5]}
21. g3 {[%clk 0:02:06.2]} 21... Nf3 {[%clk 0:02:33.1]} 22. Nf5 {[%clk
0:02:01.5]} 22... Nd4 {[%clk 0:02:13.9]} 23. Nxd4 {[%clk 0:02:01.4]} 23... cxd4
{[%clk 0:02:15.8]} 24. Rhe1 {[%clk 0:01:54]} 24... g6 {[%clk 0:02:10.2]} 25. Qd2
{[%clk 0:01:52.8]} 25... Bxd5 {[%clk 0:01:59]} 26. Bxd5 {[%clk 0:01:45.9]} 26...
Qf5+ {[%clk 0:01:57.7]} 27. Ka1 {[%clk 0:01:42.7]} 27... Qxd5 {[%clk 0:01:50.5]}
28. Qxh6 {[%clk 0:01:37.3]} 28... Rxe1 {[%clk 0:01:49.8]} 29. Rxe1 {[%clk
0:01:38.7]} 29... d3 {[%clk 0:01:51.2]} 30. Qd2 {[%clk 0:01:39.2]} 30... Rc8
{[%clk 0:01:48.4]} 31. a3 {[%clk 0:01:22.4]} 31... Kg7 {[%clk 0:01:47.5]} 32.
Rd1 {[%clk 0:01:22.4]} 32... Rc2 {[%clk 0:01:36.7]} 33. Qe3 {[%clk 0:01:22.1]}
33... d2 {[%clk 0:01:35.8]} 34. Kb1 {[%clk 0:00:54]} 34... Qc4 {[%clk
0:01:13.9]} 35. Qe5+ {[%clk 0:00:16.2]} 35... Kh7 {[%clk 0:01:12.1]} 36. Qf4
{[%clk 0:00:17.1]} 36... Qd3 {[%clk 0:00:56.7]} 37. Qxf7+ {[%clk 0:00:16.2]}
37... Kh6 {[%clk 0:00:53]} 38. Qf8+ {[%clk 0:00:16.7]} 38... Kh5 {[%clk
0:00:41.1]} 39. g4+ {[%clk 0:00:17.2]} 39... Kg5 {[%clk 0:00:37]} 40. Qe7+
{[%clk 0:00:10.4]} 40... Kh6 {[%clk 0:00:10.6]} 41. Qe3+ {[%clk 0:00:11.1]}
41... Qxe3 {[%clk 0:00:11]} 42. fxe3 {[%clk 0:00:13]} 42... Rc4 {[%clk
0:00:12.4]} 43. Rxd2 {[%clk 0:00:13.8]} 43... Rxg4 {[%clk 0:00:14]} 44. Kc2
{[%clk 0:00:12.6]} 44... Rh4 {[%clk 0:00:14.8]} 45. Kd3 {[%clk 0:00:13.2]} 45...
Kg5 {[%clk 0:00:15.6]} 46. Rf2 {[%clk 0:00:13.3]} 46... a5 {[%clk 0:00:15.2]}
47. e4 {[%clk 0:00:14.3]} 47... Rh8 {[%clk 0:00:13.8]} 48. e5 {[%clk 0:00:14.3]}
48... Rc8 {[%clk 0:00:11.2]} 49. Ke4 {[%clk 0:00:13.5]} 49... Rc1 {[%clk
0:00:11.7]} 50. e6 {[%clk 0:00:13.7]} 50... Rd1 {[%clk 0:00:11.8]} 51. Ke5
{[%clk 0:00:14.2]} 51... Re1+ {[%clk 0:00:12.1]} 52. Kd6 {[%clk 0:00:15.5]}
52... Rd1+ {[%clk 0:00:13.2]} 53. Ke7 {[%clk 0:00:16.2]} 53... Kh6 {[%clk
0:00:14.5]} 54. Kf7 {[%clk 0:00:17]} 1-0

[Event "*** MasterClass Titled Tuesday Blitz"]
[Site "Chess.com"]
[Date "2017.10.03"]
[Round "7"]
[White "jefferyx"]
[Black "Tesla37"]
[Result "1-0"]
[WhiteElo "2767"]
[BlackElo "2665"]
[TimeControl "180+2"]
[EndTime "14:38:06 PDT"]
[Termination "jefferyx won on time"]

1. d4 {[%clk 0:03:01.9]} 1... Nf6 {[%clk 0:03:00.1]} 2. c4 {[%clk 0:03:02.9]}
2... e6 {[%clk 0:03:01]} 3. Nf3 {[%clk 0:03:04.3]} 3... d5 {[%clk 0:03:01.2]} 4.
g3 {[%clk 0:03:05.7]} 4... Bb4+ {[%clk 0:02:58.8]} 5. Bd2 {[%clk 0:03:06.5]}
5... Be7 {[%clk 0:02:59.7]} 6. Bg2 {[%clk 0:03:08.1]} 6... O-O {[%clk
0:03:00.5]} 7. O-O {[%clk 0:03:09.4]} 7... c6 {[%clk 0:02:59.9]} 8. Qc2 {[%clk
0:03:10.6]} 8... Nbd7 {[%clk 0:02:59.3]} 9. Rd1 {[%clk 0:03:11.5]} 9... b6
{[%clk 0:03:00.2]} 10. b3 {[%clk 0:03:12.9]} 10... Bb7 {[%clk 0:03:01.2]} 11.
Nc3 {[%clk 0:03:11.2]} 11... Rc8 {[%clk 0:03:00.9]} 12. e4 {[%clk 0:03:12.3]}
12... c5 {[%clk 0:03:02.1]} 13. exd5 {[%clk 0:03:13.4]} 13... exd5 {[%clk
0:03:02.6]} 14. Be3 {[%clk 0:03:14.4]} 14... dxc4 {[%clk 0:02:58.9]} 15. d5
{[%clk 0:03:15.4]} 15... Bd6 {[%clk 0:02:48.5]} 16. bxc4 {[%clk 0:03:13.4]}
16... Re8 {[%clk 0:02:49.3]} 17. Bh3 {[%clk 0:03:06.3]} 17... h6 {[%clk
0:02:43]} 18. Nb5 {[%clk 0:02:56.4]} 18... Bb8 {[%clk 0:02:41]} 19. a4 {[%clk
0:02:52.4]} 19... Ne5 {[%clk 0:02:10.5]} 20. Nxe5 {[%clk 0:02:41.7]} 20... Bxe5
{[%clk 0:02:10.8]} 21. Rab1 {[%clk 0:02:38.5]} 21... Ra8 {[%clk 0:02:02.3]} 22.
a5 {[%clk 0:02:37.2]} 22... Bc8 {[%clk 0:01:59.2]} 23. Bg2 {[%clk 0:02:25.5]}
23... Bg4 {[%clk 0:02:00]} 24. Re1 {[%clk 0:02:24.6]} 24... Qd7 {[%clk
0:02:01.2]} 25. Qd2 {[%clk 0:01:56.3]} 25... Bh3 {[%clk 0:01:54.9]} 26. Bf4
{[%clk 0:01:53.8]} 26... Bxf4 {[%clk 0:01:47.1]} 27. Qxf4 {[%clk 0:01:54.5]}
27... Bxg2 {[%clk 0:01:13.4]} 28. Kxg2 {[%clk 0:01:56.4]} 28... bxa5 {[%clk
0:01:07.7]} 29. Qd6 {[%clk 0:01:38.9]} 29... Qg4 {[%clk 0:01:04.1]} 30. Qxc5
{[%clk 0:01:39.4]} 30... Rxe1 {[%clk 0:00:58]} 31. Rxe1 {[%clk 0:01:41.3]} 31...
Rc8 {[%clk 0:00:58.8]} 32. Nc7 {[%clk 0:01:02.3]} 32... a4 {[%clk 0:00:38.9]}
33. d6 {[%clk 0:00:57.9]} 33... a3 {[%clk 0:00:30]} 34. h3 {[%clk 0:00:56.4]}
34... Qd7 {[%clk 0:00:29.3]} 35. Qxa3 {[%clk 0:00:51.2]} 35... Qc6+ {[%clk
0:00:30.3]} 36. Kg1 {[%clk 0:00:52]} 36... Qxc4 {[%clk 0:00:31.2]} 37. Qxa7
{[%clk 0:00:52.5]} 37... Qd3 {[%clk 0:00:26.9]} 38. Qc5 {[%clk 0:00:49.6]} 38...
Ne4 {[%clk 0:00:23.3]} 39. Qd5 {[%clk 0:00:48.5]} 39... Qxd5 {[%clk 0:00:03.7]}
40. Nxd5 {[%clk 0:00:50.4]} 40... Nxd6 {[%clk 0:00:04.2]} 41. Ne7+ {[%clk
0:00:51.6]} 41... Kh7 {[%clk 0:00:05.3]} 42. Nxc8 {[%clk 0:00:53.5]} 42... Nxc8
{[%clk 0:00:06.4]} 43. Rd1 {[%clk 0:00:52.9]} 43... Kg6 {[%clk 0:00:06.3]} 44.
Rd7 {[%clk 0:00:53.6]} 44... f6 {[%clk 0:00:05.5]} 45. Kg2 {[%clk 0:00:53.5]}
45... h5 {[%clk 0:00:06.3]} 46. Kf3 {[%clk 0:00:53.3]} 46... Nb6 {[%clk
0:00:07.5]} 47. Rb7 {[%clk 0:00:42]} 47... Nc4 {[%clk 0:00:05.5]} 48. Kf4 {[%clk
0:00:42.4]} 48... Ne5 {[%clk 0:00:05.8]} 49. Ke4 {[%clk 0:00:40.6]} 49... Kh6
{[%clk 0:00:04.8]} 50. f4 {[%clk 0:00:40.1]} 50... Nc4 {[%clk 0:00:05]} 51. Kd5
{[%clk 0:00:33.9]} 51... Ne3+ {[%clk 0:00:05.2]} 52. Ke6 {[%clk 0:00:34.8]}
52... Nf1 {[%clk 0:00:03.4]} 53. Rb3 {[%clk 0:00:34.1]} 53... Kg6 {[%clk
0:00:03.8]} 54. Rd3 {[%clk 0:00:33.9]} 54... Nh2 {[%clk 0:00:03.8]} 55. Ke7
{[%clk 0:00:28.8]} 55... Nf1 {[%clk 0:00:03.8]} 56. Kf8 {[%clk 0:00:29.9]} 56...
Kh6 {[%clk 0:00:05]} 57. Kf7 {[%clk 0:00:30.6]} 57... Nh2 {[%clk 0:00:03.8]} 58.
Rd8 {[%clk 0:00:30.1]} 58... Kh7 {[%clk 0:00:04]} 59. Rg8 {[%clk 0:00:31]} 1-0